fUST/lending_fUST_20250616
["ID","MTS","AMOUNT","RATE_DAILY","PERIOD"]
[366111179,1750068650678,-460.0,0.00022465,4]
[366111180,1750068650687,-460.0,0.00022465,4]
[366111181,1750068650696,-239.04150137,0.00022465,4]
[366111182,1750068650706,-460.0,0.00022465,4]
[366111183,1750068650716,-460.0,0.00022465,4]
[366111184,1750068650725,-214.55659888,0.00022465,4]
[366111185,1750068650736,-227.59448699,0.00022465,4]
[366111186,1750068650745,-476.82429389,0.00022465,4]
[366111187,1750068650754,-460.0,0.00022465,4]
[366111188,1750068650764,-410.0,0.00022465,4]
[366111189,1750068650774,-460.0,0.00022465,4]
[366111190,1750068650786,-460.0,0.00022465,4]
[366111191,1750068650796,-460.0,0.00022465,4]
[366111192,1750068650805,-460.0,0.00022465,4]
[366111193,1750068650814,-460.0,0.00022465,4]
[366111194,1750068650823,-460.0,0.00022465,4]
[366111195,1750068650833,-321.3940502,0.00022465,4]
[366111196,1750068650842,-290.61478748,0.00022465,4]
[366111198,1750068650851,-460.0,0.00022465,4]
[366111199,1750068650861,-1526.03,0.00022465,4]
[366111200,1750068650873,-460.0,0.00022465,4]
[366111202,1750068650882,-223.40042319,0.00022465,4]
[366111203,1750068650893,-460.0,0.00022465,4]
[366111204,1750068650903,-460.0,0.00022465,4]
[366111205,1750068650912,-460.0,0.00022465,4]
[366111206,1750068650922,-342.73492699,0.00022465,4]
[366111207,1750068650931,-427.01416206,0.00022465,4]
[366111208,1750068650941,-460.0,0.00022465,4]
[366111209,1750068650950,-382.05453192,0.00022465,4]
[366111210,1750068650960,-1017.26,0.00022465,4]
[366111211,1750068650971,-460.0,0.00022465,4]
[366111212,1750068650980,-460.0,0.00022465,4]
[366111213,1750068650989,-460.0,0.00022465,4]
[366111214,1750068650999,-460.0,0.00022465,4]
[366111215,1750068651009,-460.0,0.00022465,4]
[366111216,1750068651019,-460.0,0.00022465,4]
[366111217,1750068651029,-403.81699889,0.00022465,4]
[366111218,1750068651039,-892.04,0.00022465,4]
[366111219,1750068651048,-460.0,0.00022465,4]
[366111220,1750068651057,-460.0,0.00022465,4]
[366111221,1750068651068,-588.81956853,0.00022465,4]
[366111222,1750068651077,-470.33344409,0.00022465,4]
[366111223,1750068651087,-460.0,0.00022465,4]
[366111224,1750068651097,-460.0,0.00022465,4]
[366111225,1750068651106,-460.0,0.00022465,4]
[366111226,1750068651115,-607.7789417,0.00022465,4]
[366111227,1750068651125,-460.0,0.00022465,4]
[366111228,1750068651135,-410.0,0.00022465,4]
[366111229,1750068651150,-460.0,0.00022465,4]
[366111230,1750068651160,-460.0,0.00022465,4]
[366111231,1750068651170,-460.0,0.00022465,4]
[366111232,1750068651180,-460.0,0.00022465,4]
[366111233,1750068651190,-168.0,0.00022472,2]
[366111234,1750068651200,-1000.0,0.00022521,2]
[366111235,1750068651210,-504.14328316,0.00022521,2]
[366111236,1750068651220,-211.021358,0.00022521,7]
[366111237,1750068651229,-921.92111276,0.0002259,7]
[366111238,1750068651240,-286.30369622,0.00022659,3]
[366111239,1750068651250,-223.0315306,0.00022666,2]
[366111240,1750068651260,-168.0,0.00022684,2]
[366111241,1750068651269,-359.14554402,0.0002269,2]
[366111242,1750068651279,-152.989148,0.00022724,7]
[366111243,1750068651292,-152.989148,0.00022724,7]
[366111244,1750068651302,-151.0,0.00022724,7]
[366111245,1750068651311,-151.0,0.00022724,7]
[366111246,1750068651321,-324.36779415,0.00022739,4]
[366111247,1750068651331,-460.0,0.00022739,4]
[366111248,1750068651340,-460.0,0.00022739,4]
[366111249,1750068651350,-276.35092718,0.00022739,4]
[366111250,1750068651359,-460.0,0.00022739,4]
[366111251,1750068651368,-460.0,0.00022739,4]
[366111252,1750068651378,-460.0,0.00022739,2]
[366111253,1750068651389,-460.0,0.00022739,4]
[366111254,1750068651399,-460.0,0.00022739,4]
[366111255,1750068651408,-453.16113298,0.00022739,4]
[366111256,1750068651417,-460.0,0.00022739,4]
[366111257,1750068651427,-460.0,0.00022739,4]
[366111258,1750068651438,-460.0,0.00022739,4]
[366111259,1750068651448,-460.0,0.00022739,4]
[366111260,1750068651458,-460.0,0.00022739,4]
[366111261,1750068651468,-151.0,0.00022739,7]
[366111262,1750068651477,-158.482539,0.00022739,7]
[366111263,1750068651487,-460.0,0.00022739,4]
[366111264,1750068651496,-555.15,0.00022739,2]
[366111265,1750068651506,-370.0,0.00022739,4]
[366111266,1750068651516,-240.0,0.00022739,4]
[366111267,1750068651526,-423.48181343,0.00022739,4]
[366111268,1750068651535,-566.20253903,0.00022739,4]
[366111269,1750068651544,-460.0,0.00022739,4]
[366111270,1750068651554,-460.0,0.00022739,4]
[366111271,1750068651564,-347.25318973,0.00022739,4]
[366111272,1750068651573,-362.65888534,0.00022739,4]
[366111273,1750068651583,-440.0,0.00022739,4]
[366111274,1750068651592,-460.0,0.00022739,4]
[366111275,1750068651696,-486.22016368,0.00022739,4]
[366111277,1750068651707,-178.94622705,0.00022739,4]
[366111278,1750068651717,-460.0,0.00022739,4]
[366111280,1750068651727,-460.0,0.00022739,4]
[366111282,1750068651737,-151.0,0.00022739,7]
[366111283,1750068651749,-151.0,0.00022739,7]
[366111284,1750068651759,-460.0,0.00022739,4]
[366111286,1750068651769,-460.0,0.00022739,4]
[366111287,1750068651779,-151.0,0.00022739,7]
[366111288,1750068651789,-460.0,0.00022739,4]
[366111289,1750068651799,-460.0,0.00022739,4]
[366111290,1750068651809,-845.36,0.00022739,4]
[366111291,1750068651820,-460.0,0.00022739,4]
[366111292,1750068651830,-1321.52,0.00022739,4]
[366111293,1750068651840,-460.0,0.00022739,4]
[366111294,1750068651850,-460.0,0.00022739,4]
[366111295,1750068651859,-1181.76,0.00022739,4]
[366111297,1750068651869,-460.0,0.00022739,4]
[366111298,1750068651878,-460.0,0.00022739,4]
[366111299,1750068651890,-336.82939588,0.00022739,4]
[366111300,1750068651899,-1399.51,0.00022739,4]
[366111301,1750068651909,-949.96,0.00022739,4]
[366111302,1750068651919,-460.0,0.00022739,4]
[366111303,1750068651929,-460.0,0.00022739,4]
[366111304,1750068651938,-460.0,0.00022739,4]
[366111305,1750068651948,-550.31,0.00022739,4]
[366111306,1750068651958,-460.0,0.00022739,4]
[366111307,1750068651968,-460.0,0.00022739,4]
[366111308,1750068651978,-460.0,0.00022739,4]
[366111309,1750068651987,-475.83,0.00022739,4]
[366111310,1750068651997,-460.0,0.00022739,4]
[366111311,1750068652007,-460.0,0.00022739,4]
[366111312,1750068652016,-460.0,0.00022739,4]
[366111313,1750068652026,-347.15891941,0.00022739,4]
[366111314,1750068652037,-623.44,0.00022739,4]
[366111316,1750068652047,-460.0,0.00022739,4]
[366111317,1750068652057,-460.0,0.00022739,4]
[366111318,1750068652066,-460.0,0.00022739,4]
[366111319,1750068652076,-460.0,0.00022739,4]
[366111320,1750068652086,-460.0,0.00022739,4]
[366111321,1750068652096,-460.0,0.00022739,4]
[366111322,1750068652106,-460.0,0.00022739,4]
[366111323,1750068652117,-460.0,0.00022739,4]
[366111324,1750068652126,-460.0,0.00022739,4]
[366111325,1750068652135,-460.0,0.00022739,4]
[366111326,1750068652146,-460.0,0.00022739,4]
[366111327,1750068652155,-460.0,0.00022739,4]
[366111328,1750068652166,-460.0,0.00022739,4]
[366111329,1750068652177,-460.0,0.00022739,4]
[366111330,1750068652188,-460.0,0.00022739,4]
[366111331,1750068652199,-528.15264217,0.00022739,4]
[366111332,1750068652208,-460.0,0.00022739,4]
[366111333,1750068652219,-460.0,0.00022739,4]
[366111334,1750068652228,-460.0,0.00022739,4]
[366111335,1750068652242,-460.0,0.00022739,4]
[366111336,1750068652253,-460.0,0.00022739,4]
[366111337,1750068652263,-460.0,0.00022739,4]
[366111338,1750068652274,-460.0,0.00022739,4]
[366111339,1750068652284,-507.49,0.00022739,4]
[366111340,1750068652294,-460.0,0.00022739,4]
[366111341,1750068652304,-460.0,0.00022739,4]
[366111342,1750068652314,-460.0,0.00022739,4]
[366111343,1750068652324,-460.0,0.00022739,4]
[366111344,1750068652334,-460.0,0.00022739,4]
[366111345,1750068652344,-460.0,0.00022739,4]
[366111346,1750068652353,-460.0,0.00022739,4]
[366111347,1750068652363,-372.79298343,0.00022739,4]
[366111348,1750068652374,-460.0,0.00022739,4]
[366111349,1750068652383,-400.00545505,0.00022739,4]
[366111350,1750068652394,-460.0,0.00022739,4]
[366111351,1750068652404,-460.0,0.00022739,4]
[366111352,1750068652414,-460.0,0.00022739,4]
[366111353,1750068652425,-460.60440768,0.00022739,4]
[366111354,1750068652435,-460.0,0.00022739,4]
[366111355,1750068652445,-460.0,0.00022739,4]
[366111356,1750068652455,-460.0,0.00022739,4]
[366111357,1750068652465,-343.36540105,0.00022739,4]
[366111358,1750068652475,-1526.03,0.00022739,4]
[366111359,1750068652486,-460.0,0.00022739,4]
[366111360,1750068652496,-460.0,0.00022739,4]
[366111361,1750068652505,-460.0,0.00022739,4]
[366111362,1750068652515,-460.0,0.00022739,4]
[366111363,1750068652525,-460.0,0.00022739,4]
[366111364,1750068652536,-1017.26,0.00022739,4]
[366111365,1750068652547,-460.0,0.00022739,4]
[366111366,1750068652557,-460.0,0.00022739,4]
[366111367,1750068652567,-469.86600201,0.00022739,4]
[366111369,1750068652577,-442.38786236,0.00022739,4]
[366111371,1750068652588,-251.36306871,0.00022739,4]
[366111372,1750068652598,-460.0,0.00022739,4]
[366111373,1750068652609,-892.04,0.00022739,4]
[366111375,1750068652619,-460.0,0.00022739,4]
[366111376,1750068652628,-460.0,0.00022739,4]
[366111377,1750068652638,-460.0,0.00022739,4]
[366111378,1750068652648,-460.0,0.00022739,4]
[366111379,1750068652658,-460.0,0.00022739,4]
[366111380,1750068652670,-164.59495689,0.00022739,4]
[366111381,1750068652681,-460.0,0.00022739,4]
[366111382,1750068652690,-460.0,0.00022739,4]
[366111383,1750068652701,-460.0,0.00022739,4]
[366111384,1750068652712,-2160.0,0.0002277,2]
[366111385,1750068652721,-653.0,0.0002277,2]
[366111386,1750068652731,-465.621,0.0002277,2]
[366111387,1750068652742,-587.0,0.00022775,2]
[366111388,1750068652752,-587.0,0.00022776,2]
[366111389,1750068652763,-500.0,0.00022788,2]
[366111390,1750068652773,-635.84310012,0.00022788,2]
[366111391,1750068652783,-921.92111276,0.00022797,7]
[366111392,1750068652793,-575.46649637,0.00022806,2]
[366111393,1750068652803,-500.0,0.00022807,2]
[366111394,1750068652813,-500.0,0.00022807,2]
[366111395,1750068652822,-501.18269043,0.00022832,2]
[366111396,1750068652832,-600.0,0.00022832,2]
[366111397,1750068652842,-168.0,0.00022887,2]
[366111398,1750068652851,-510.64888868,0.00022897,8]
[366111399,1750068652862,-500.0,0.00022897,8]
[366111400,1750068652872,-4053.77327036,0.00022929,2]
[366111401,1750068652882,-200.52773835,0.0002295,2]
[366111402,1750068652892,-41708.95075335,0.00022951,2]
[366111403,1750068652902,-1149.897466,0.00022951,2]
[366111404,1750068652912,-1149.897466,0.00022951,2]
[366111405,1750068652923,-1428.0,0.00022996,2]
[366111406,1750068652933,-168.0,0.00022998,2]
[366111407,1750068652943,-150.0,0.00023,2]
[366111408,1750068652953,-1000.0,0.00023,23]
[366111409,1750068652963,-921.92111276,0.00023003,8]
[366111410,1750068652973,-154.696438,0.00023013,7]
[366111411,1750068652983,-151.0,0.00023013,7]
[366111412,1750068652993,-152.148333,0.00023013,7]
[366111413,1750068653003,-173.198696,0.00023013,7]
[366111414,1750068653014,-460.0,0.00023013,4]
[366111415,1750068653024,-360.73,0.00023013,4]
[366111416,1750068653034,-151.0,0.00023013,7]
[366111417,1750068653044,-460.0,0.00023013,4]
[366111418,1750068653054,-460.0,0.00023013,4]
[366111419,1750068653063,-477.18,0.00023013,2]
[366111420,1750068653073,-360.0,0.00023013,4]
[366111421,1750068653084,-152.989148,0.00023013,7]
[366111422,1750068653094,-152.989148,0.00023013,7]
[366111423,1750068653104,-151.0,0.00023013,7]
[366111424,1750068653114,-460.0,0.00023013,4]
[366111425,1750068653125,-240.0,0.00023013,4]
[366111426,1750068653134,-460.0,0.00023013,4]
[366111427,1750068653145,-155.69901,0.00023013,7]
[366111428,1750068653156,-155.69901,0.00023013,7]
[366111429,1750068653166,-555.15,0.00023013,2]
[366111430,1750068653176,-151.0,0.00023013,7]
[366111431,1750068653186,-460.0,0.00023013,4]
[366111432,1750068653196,-460.0,0.00023013,4]
[366111433,1750068653206,-460.0,0.00023013,4]
[366111434,1750068653216,-460.0,0.00023013,4]
[366111435,1750068653226,-460.0,0.00023013,4]
[366111436,1750068653236,-460.0,0.00023013,4]
[366111437,1750068653247,-460.0,0.00023013,4]
[366111438,1750068653257,-845.36,0.00023013,4]
[366111439,1750068653267,-460.0,0.00023013,4]
[366111440,1750068653277,-1321.52,0.00023013,4]
[366111441,1750068653287,-460.0,0.00023013,4]
[366111442,1750068653298,-460.0,0.00023013,4]
[366111443,1750068653308,-1181.76,0.00023013,4]
[366111444,1750068653318,-353.21356054,0.00023013,4]
[366111445,1750068653328,-1399.51,0.00023013,4]
[366111446,1750068653337,-460.0,0.00023013,4]
[366111447,1750068653347,-949.96,0.00023013,4]
[366111448,1750068653357,-460.0,0.00023013,4]
[366111449,1750068653367,-550.31,0.00023013,4]
[366111450,1750068653377,-460.0,0.00023013,4]
[366111451,1750068653388,-460.0,0.00023013,4]
[366111452,1750068653398,-460.0,0.00023013,4]
[366111453,1750068653407,-475.83,0.00023013,4]
[366111454,1750068653418,-460.0,0.00023013,4]
[366111455,1750068653428,-460.0,0.00023013,4]
[366111456,1750068653438,-460.0,0.00023013,4]
[366111457,1750068653447,-623.44,0.00023013,4]
[366111458,1750068653457,-460.0,0.00023013,4]
[366111459,1750068653466,-460.0,0.00023013,4]
[366111460,1750068653475,-460.0,0.00023013,4]
[366111461,1750068653568,-460.0,0.00023013,4]
[366111462,1750068653578,-460.0,0.00023013,4]
[366111463,1750068653589,-460.0,0.00023013,4]
[366111464,1750068653599,-460.0,0.00023013,4]
[366111465,1750068653609,-460.0,0.00023013,4]
[366111466,1750068653619,-460.0,0.00023013,4]
[366111467,1750068653628,-460.0,0.00023013,4]
[366111468,1750068653638,-460.0,0.00023013,4]
[366111469,1750068653648,-410.0,0.00023013,4]
[366111470,1750068653658,-460.0,0.00023013,4]
[366111471,1750068653672,-460.0,0.00023013,4]
[366111472,1750068653682,-460.0,0.00023013,4]
[366111473,1750068653692,-165.68868608,0.00023013,4]
[366111474,1750068653702,-460.0,0.00023013,4]
[366111475,1750068653713,-460.0,0.00023013,4]
[366111476,1750068653724,-460.0,0.00023013,4]
[366111477,1750068653734,-460.0,0.00023013,4]
[366111478,1750068653745,-460.0,0.00023013,4]
[366111479,1750068653756,-460.0,0.00023013,4]
[366111480,1750068653766,-507.49,0.00023013,4]
[366111481,1750068653776,-460.0,0.00023013,4]
[366111482,1750068653786,-460.0,0.00023013,4]
[366111483,1750068653796,-460.0,0.00023013,4]
[366111484,1750068653807,-460.0,0.00023013,4]
[366111485,1750068653817,-460.0,0.00023013,4]
[366111486,1750068653827,-460.0,0.00023013,4]
[366111487,1750068653837,-460.0,0.00023013,4]
[366111488,1750068653847,-460.0,0.00023013,4]
[366111489,1750068653857,-460.0,0.00023013,4]
[366111490,1750068653866,-460.0,0.00023013,4]
[366111491,1750068653876,-460.0,0.00023013,4]
[366111492,1750068653886,-460.0,0.00023013,4]
[366111493,1750068653895,-460.0,0.00023013,4]
[366111494,1750068653904,-460.0,0.00023013,4]
[366111495,1750068653914,-1526.03,0.00023013,4]
[366111496,1750068653923,-460.0,0.00023013,4]
[366111497,1750068653933,-460.0,0.00023013,4]
[366111498,1750068653943,-460.0,0.00023013,4]
[366111499,1750068653953,-460.0,0.00023013,4]
[366111500,1750068653963,-460.0,0.00023013,4]
[366111501,1750068653973,-1017.26,0.00023013,4]
[366111502,1750068653983,-460.0,0.00023013,4]
[366111503,1750068653994,-460.0,0.00023013,4]
[366111504,1750068654005,-460.0,0.00023013,4]
[366111505,1750068654015,-892.04,0.00023013,4]
[366111506,1750068654024,-460.0,0.00023013,4]
[366111507,1750068654034,-320.0,0.00023013,4]
[366111508,1750068654043,-460.0,0.00023013,4]
[366111509,1750068654053,-460.0,0.00023013,4]
[366111510,1750068654063,-460.0,0.00023013,4]
[366111511,1750068654074,-460.0,0.00023013,4]
[366111512,1750068654083,-460.0,0.00023013,4]
[366111513,1750068654093,-460.0,0.00023013,4]
[366111514,1750068654102,-174.0,0.00023014,7]
[366111515,1750068654112,-500.0,0.0002303,2]
[366111516,1750068654121,-500.0,0.00023039,2]
[366111517,1750068654131,-500.0,0.00023055,2]
[366111518,1750068654142,-500.0,0.00023058,2]
[366111519,1750068654151,-500.0,0.00023084,2]
[366111520,1750068654162,-254.26406188,0.00023096,3]
[366111521,1750068654172,-500.0,0.00023202,2]
[366111522,1750068654182,-921.92111276,0.0002321,8]
[366111523,1750068654191,-245.89303978,0.00023246,2]
[366111524,1750068654388,-460.0,0.00021917,4]
[366111525,1750068654398,-460.0,0.00021917,4]
[366111526,1750068654408,-460.0,0.00021917,4]
[366111527,1750068654418,-440.0,0.00021917,4]
[366111528,1750068654428,-460.0,0.00021917,4]
[366111529,1750068654438,-460.0,0.00022191,4]
[366111530,1750068654447,-460.0,0.00022191,4]
[366111531,1750068654457,-460.0,0.00022191,4]
[366111532,1750068654467,-460.0,0.00022465,4]
[366111533,1750068654477,-69.64258394,0.00022465,4]
[366111534,1750068654489,-254.00260516,0.00022465,4]
[366111535,1750068654501,-216.66577653,0.00022465,4]
[366111536,1750068654511,-407.05904662,0.00022465,4]
[366111537,1750068654521,-77.73864364,0.00023246,2]
[366111538,1750068654534,-176.36831658,0.00023246,2]
[366111539,1750068654543,-427.15068342,0.00023264,3]
[366111540,1750068654844,-460.0,0.00021917,4]
[366111541,1750068654854,-460.0,0.00021917,4]
[366111542,1750068654864,-460.0,0.00021917,4]
[366111543,1750068654874,-460.0,0.00021917,4]
[366111544,1750068654884,-460.0,0.00021917,4]
[366111545,1750068654897,-460.0,0.00021917,4]
[366111546,1750068654908,-460.0,0.00021917,4]
[366111547,1750068654917,-241.2547936,0.00022191,4]
[366111549,1750068810758,200.0,0.00024057,120]
[366111551,1750068825695,165.477445,0.00013699,2]
[366111556,1750068930775,200.0,0.00024039,120]
[366111558,1750069050765,200.0,0.00024573,120]
[366111560,1750069110717,200.0,0.00023851,120]
[366111567,1750069621836,399.5332634,0.00017865,2]
[366111574,1750069719471,84763.02181003,0.00017,2]
[366111575,1750069722091,-282.2729348,0.00018,2]
[366111577,1750069725498,-500.0,0.00018,2]
[366111578,1750069725957,1707.99729416,0.0002,120]
[366111579,1750069726320,314.23673266,0.00025035,120]
[366111580,1750069728524,154.02278158,0.000168,2]
[366111581,1750069729589,-154.02278158,0.00018,2]
[366111582,1750069730812,-345.97721842,0.00018,2]
[366111585,1750069744047,300.0,0.00017999,2]
[366111586,1750069746289,-246.18201759,0.00018,2]
[366111587,1750069809410,1200.0,0.00017999,2]
[366111588,1750069832637,559.80683324,0.00017999,2]
[366111589,1750069832702,559.80683324,0.00017999,2]
[366111590,1750069832760,559.80683324,0.00017999,2]
[366111591,1750069832805,559.80683324,0.00017999,2]
[366111592,1750069832844,559.80683324,0.00017999,2]
[366111593,1750069832878,559.80683324,0.00017999,2]
[366111594,1750069832917,559.80683324,0.00017999,2]
[366111595,1750069833335,559.80683324,0.00017999,2]
[366111596,1750069833395,559.80683324,0.00017999,2]
[366111597,1750069833495,559.80683324,0.00017999,2]
[366111598,1750069833673,559.80683324,0.00017999,2]
[366111599,1750069833709,559.80683324,0.00017999,2]
[366111600,1750069833771,559.80683324,0.00017999,2]
[366111601,1750069833804,500.0,0.00017999,2]
[366111602,1750069833839,588.3707159,0.00017999,2]
[366111603,1750069833873,559.80683324,0.00017999,2]
[366111604,1750069833905,282.2729348,0.00017999,2]
[366111605,1750069833938,500.0,0.00017999,2]
[366111606,1750069833977,559.80683324,0.00017999,2]
[366111607,1750069834009,290.47033614,0.00017999,2]
[366111608,1750069834052,500.0,0.00017999,2]
[366111609,1750069834101,220.08912998,0.00017999,2]
[366111610,1750069834149,559.80683324,0.00017999,2]
[366111611,1750069834326,559.80683324,0.00017999,2]
[366111612,1750069834795,559.80683324,0.00017999,2]
[366111624,1750069837121,-1046.102,0.00018,2]
[366111625,1750069837179,-11485.59114079,0.00018,2]
[366111708,1750069838654,-235.2822668,0.00018,2]
[366111709,1750069838664,-14898.62544396,0.00018,2]
[366111710,1750069838673,-19038.2704125,0.00018,2]
[366111711,1750069838683,-300.0,0.00018088,2]
[366111712,1750069838692,-264.5082263,0.00018089,2]
[366111713,1750069838702,-24900.0,0.00018089,2]
[366111714,1750069838712,-9837.9011957,0.00019,2]
[366111716,1750069838721,-412.00266534,0.00019,20]
[366111717,1750069838731,-32998.48695801,0.00019155,2]
[366111718,1750069838740,-25000.0,0.00019156,2]
[366111719,1750069838750,-556.39849823,0.00019156,2]
[366111720,1750069838759,-207.4,0.00019156,2]
[366111721,1750069838769,-636.35756007,0.00019156,2]
[366111723,1750069838778,-160.0,0.0001916,2]
[366111724,1750069838788,-548.27127447,0.00019177,4]
[366111725,1750069838797,-480.56479395,0.00019178,2]
[366111726,1750069838807,-188.46024207,0.00019178,2]
[366111727,1750069838818,-184.060435,0.00019178,2]
[366111728,1750069838827,-420.0,0.00019734,2]
[366111729,1750069838837,-228.0,0.00019735,2]
[366111730,1750069838847,-3126.72824852,0.00019831,2]
[366111731,1750069838857,-10268.94398381,0.0002,3]
[366111732,1750069838866,-160.0,0.0002,3]
[366111733,1750069838876,-12537.89035583,0.0002,3]
[366111734,1750069838885,-213.36025772,0.0002,3]
[366111735,1750069838894,-845.4146947,0.0002,3]
[366111736,1750069838904,-160.0,0.00020003,2]
[366111737,1750069838914,-229.90125484,0.00020003,2]
[366111738,1750069838924,-160.0,0.00020003,2]
[366111739,1750069838933,-160.0,0.00020003,2]
[366111740,1750069838943,-424.54874296,0.00020003,2]
[366111741,1750069838952,-835.67987521,0.00020003,2]
[366111742,1750069838961,-213.36025772,0.00020003,2]
[366111743,1750069838970,-160.0,0.00020003,2]
[366111744,1750069838980,-160.0,0.00020003,2]
[366111745,1750069838989,-160.0,0.00020003,2]
[366111746,1750069838998,-160.0,0.00020003,2]
[366111747,1750069839007,-12537.89035583,0.00020003,2]
[366111748,1750069839017,-160.0,0.00020003,2]
[366111749,1750069839026,-845.4146947,0.00020003,2]
[366111750,1750069839039,-647.78928689,0.000201,2]
[366111751,1750069839049,-647.78928677,0.000201,2]
[366111752,1750069839058,-647.78928677,0.000201,2]
[366111753,1750069839068,-647.78928677,0.000201,2]
[366111754,1750069839078,-647.78928677,0.000201,2]
[366111755,1750069839087,-647.78928677,0.00020107,2]
[366111756,1750069839096,-153.71640649,0.0002031,4]
[366111757,1750069839106,-647.78928677,0.00020348,3]
[366111758,1750069839117,-523.74864626,0.00020373,2]
[366111759,1750069839127,-1595.67,0.00020378,2]
[366111760,1750069839137,-215.0738,0.00020525,2]
[366111761,1750069839146,-283.22,0.00020529,2]
[366111762,1750069839156,-647.78928677,0.0002059,3]
[366111763,1750069839165,-647.78928677,0.00020831,4]
[366111764,1750069839174,-168.0,0.00021053,2]
[366111765,1750069839184,-647.78928677,0.00021072,4]
[366111766,1750069839194,-647.78928677,0.00021314,5]
[366111767,1750069839205,-3191.34,0.00021348,2]
[366111768,1750069839214,-515.0,0.00021444,2]
[366111769,1750069839224,-500.0,0.00021445,2]
[366111770,1750069839234,-587.0,0.0002153,2]
[366111771,1750069839243,-647.78928677,0.00021555,5]
[366111772,1750069839253,-647.78928677,0.00021797,6]
[366111773,1750069839263,-515.0,0.0002183,2]
[366111774,1750069839272,-223.0315306,0.00021894,2]
[366111775,1750069839282,-500.0,0.00021916,2]
[366111776,1750069839292,-160.0,0.00021916,2]
[366111777,1750069839302,-151.0,0.00021917,2]
[366111778,1750069839311,-151.0,0.00021917,2]
[366111779,1750069839321,-151.0,0.00021917,2]
[366111780,1750069839331,-460.0,0.00021917,4]
[366111781,1750069839340,-460.0,0.00021917,4]
[366111782,1750069839350,-460.0,0.00021917,4]
[366111783,1750069839360,-151.0,0.00021917,2]
[366111784,1750069839370,-443.69206974,0.00021917,4]
[366111785,1750069839380,-433.5471557,0.00021917,4]
[366111786,1750069839390,-460.0,0.00021917,4]
[366111787,1750069839400,-460.0,0.00021917,4]
[366111788,1750069839411,-460.0,0.00021917,4]
[366111789,1750069839420,-460.0,0.00021917,4]
[366111790,1750069839430,-151.0,0.00021917,2]
[366111791,1750069839441,-151.0,0.00021917,2]
[366111792,1750069839451,-460.0,0.00021917,4]
[366111793,1750069839461,-460.0,0.00021917,4]
[366111794,1750069839472,-460.0,0.00021917,4]
[366111795,1750069839482,-460.0,0.00021917,4]
[366111796,1750069839491,-540.0,0.00021917,4]
[366111797,1750069839501,-431.12056351,0.00021917,4]
[366111798,1750069839512,-460.0,0.00021917,4]
[366111799,1750069839522,-430.0,0.00021917,4]
[366111800,1750069839531,-440.0,0.00021917,4]
[366111801,1750069839541,-173.17523759,0.00021917,4]
[366111802,1750069839551,-460.0,0.00021917,4]
[366111803,1750069839560,-460.0,0.00021917,4]
[366111804,1750069839570,-400.0,0.00021917,2]
[366111805,1750069839580,-460.0,0.00021917,4]
[366111806,1750069839590,-381.51447888,0.00021917,4]
[366111807,1750069839600,-460.0,0.00021917,4]